bitfinex/quotes_SOLUSD_20251007
["timestamp","ask_amount","ask_price","bid_price","bid_amount"]
[1759860290735,0.69,223.05,222.99,23.78654929]
[1759860291041,7.96562204,223.07,223.0,0.66]
[1759860291229,0.69,223.05,222.99,34.33781436]
[1759860291434,0.69,223.05,222.99,34.99781436]
[1759860292058,7.76562204,223.06,222.99,27.23219232]
[1759860292224,7.76562204,223.06,222.99,34.99781436]
[1759860292551,8.45562204,223.06,222.99,34.99781436]
[1759860292852,7.76562204,223.04,222.98,10.87647521]
[1759860293141,7.76562204,223.01,222.98,10.87647521]
[1759860293344,7.76562204,222.99,222.95,15.36178581]
[1759860293843,8.45562204,222.99,222.95,15.36178581]
[1759860294050,7.76562204,222.98,222.95,15.36178581]
[1759860294746,8.45562204,222.99,222.95,15.36178581]
[1759860295047,0.69,222.99,222.95,15.36178581]
[1759860295232,8.45562204,222.99,222.95,15.36178581]
[1759860295434,7.76562204,222.99,222.95,15.36178581]
[1759860295636,7.76562204,222.99,222.95,16.02178581]
[1759860296155,8.45562204,222.99,222.95,15.36178581]
[1759860296355,7.76562204,222.98,222.95,15.36178581]
[1759860296645,7.76562204,222.98,222.95,16.02178581]
[1759860296822,7.76562204,222.99,222.95,16.02178581]
[1759860297020,7.76562204,223.0,222.95,15.36178581]
[1759860297222,8.47562204,223.0,222.95,16.04178581]
[1759860297424,32.04,223.02,222.95,15.36178581]
[1759860297644,7.76562204,223.03,222.97,18.64209725]
[1759860297847,0.71,223.03,222.97,10.87647521]
[1759860298147,7.76562204,223.02,222.97,10.87647521]
[1759860298457,0.71,223.01,222.97,10.87647521]
[1759860298636,7.76562204,223.01,222.99,10.87647521]
[1759860298828,7.76562204,223.03,222.99,10.87647521]
[1759860299153,39.76562204,223.04,223.01,10.87647521]
[1759860299342,7.76562204,223.03,223.01,10.87647521]
[1759860299650,7.76562204,223.03,222.98,11.55647521]
[1759860299831,7.76562204,223.03,222.99,0.68]
[1759860300466,8.47562204,223.03,222.98,15.36109212]
[1759860300754,8.47562204,223.03,222.98,16.04109212]
[1759860300956,32.0,223.04,222.99,0.68]
[1759860301145,39.76562204,223.04,223.01,10.87647521]
[1759860301456,0.2,223.07,223.02,8.44562204]
[1759860301662,3.3233031,223.06,223.03,0.68]
[1759860301835,0.2,223.07,223.03,0.68]
[1759860301836,0.2,223.07,223.06,10.87647521]
[1759860302039,0.2,223.07,223.06,19.32209725]
[1759860302554,0.2,223.07,223.06,23.80519596]
[1759860304134,0.2,223.07,223.06,16.03957392]
[1759860304336,0.2,223.07,223.06,48.07957392]
[1759860304739,0.2,223.07,223.06,23.80519596]
[1759860304938,0.2,223.07,223.06,55.82519596]
[1759860305234,0.2,223.07,223.06,48.05957392]
[1759860305433,0.2,223.07,223.06,55.82519596]
[1759860305961,0.2,223.07,223.06,15.35957392]
[1759860306653,8.67562204,223.07,223.06,10.87647521]
[1759860307155,8.67562204,223.07,223.03,10.87647521]
[1759860307461,7.76562204,223.05,223.0,10.87647521]
[1759860307649,7.76562204,223.06,223.02,10.87647521]
[1759860307834,0.2,223.07,223.04,18.64209725]
[1759860308034,0.2,223.07,223.06,18.64209725]
[1759860308455,0.2,223.07,223.06,19.32209725]
[1759860308656,0.2,223.07,223.06,23.80519596]
[1759860311048,0.2,223.07,223.06,16.03957392]
[1759860311249,0.2,223.07,223.06,23.80519596]
[1759860311437,0.2,223.07,223.06,47.37957392]
[1759860312164,0.2,223.07,223.06,76.62519596]
[1759860315065,0.91,223.07,223.05,10.87647521]
[1759860315252,0.91,223.07,223.05,15.35972434]
[1759860315649,8.47562204,223.06,223.04,10.87647521]
[1759860315965,8.47562204,223.05,223.04,10.87647521]
[1759860316369,8.47562204,223.05,223.02,10.87647521]
[1759860316557,7.76562204,223.03,223.0,32.0]
[1759860316745,8.47562204,223.03,223.0,10.87647521]
[1759860316948,7.76562204,223.04,223.0,10.87647521]
[1759860317146,8.47562204,223.04,223.0,10.87647521]
[1759860317366,8.47562204,223.04,223.01,4.48410385]
[1759860317966,0.2,223.07,223.04,10.87647521]
[1759860318165,0.2,223.07,223.04,18.64209725]
[1759860318474,0.2,223.07,223.04,19.32209725]
[1759860318771,0.2,223.07,223.06,10.87647521]
[1759860318966,0.2,223.07,223.06,18.64209725]
[1759860319175,0.2,223.07,223.06,19.32209725]
[1759860319552,0.2,223.07,223.06,16.03957392]
[1759860319876,0.2,223.07,223.06,23.80519596]
[1759860320655,0.2,223.07,223.06,16.03957392]
[1759860320866,0.2,223.07,223.06,23.80519596]
[1759860321058,0.2,223.07,223.06,23.12519596]
[1759860321459,0.2,223.07,223.06,15.35957392]
[1759860321656,0.2,223.07,223.06,23.12519596]
[1759860322444,0.2,223.07,223.06,23.80519596]
[1759860323948,0.2,223.07,223.06,44.60519596]
[1759860324148,0.2,223.07,223.06,76.60519596]
[1759860324768,1e-08,223.07,223.06,77.05350583]
[1759860325567,1e-08,223.08,223.06,56.25350583]
[1759860325769,1e-08,223.08,223.07,19.32209725]
[1759860326165,1e-08,223.08,223.07,11.55647521]
[1759860326363,1e-08,223.08,223.07,18.64209725]
[1759860327271,1e-08,223.08,223.07,19.31209725]
[1759860327462,1e-08,223.08,223.07,23.79499499]
[1759860327862,1e-08,223.08,223.07,23.12499499]
[1759860328868,0.66000001,223.08,223.07,10.87647521]
[1759860329551,0.66000001,223.08,223.07,15.35937295]
[1759860329978,1e-08,223.08,223.07,23.12499499]
[1759860331364,1e-08,223.08,223.07,23.79499499]
[1759860331572,1e-08,223.08,223.07,23.12499499]
[1759860333355,0.66000001,223.08,223.07,55.10499499]
[1759860333761,0.66000001,223.08,223.07,10.87647521]
[1759860333964,1e-08,223.08,223.07,15.35937295]
[1759860334252,1e-08,223.08,223.07,23.12499499]
[1759860334763,0.66000001,223.08,223.07,10.87647521]
[1759860334970,0.66000001,223.08,222.96,0.67]
[1759860334971,12.90834346,223.08,222.96,0.67]
[1759860335275,7.76562204,223.06,222.99,7.76562204]
[1759860335469,7.76562204,223.06,222.99,32.0]
[1759860335686,4.48269739,223.08,222.98,7.76562204]
[1759860335687,7.76562204,223.04,222.98,7.76562204]
[1759860335864,7.76562204,223.04,222.97,39.76562204]
[1759860336065,8.33562204,223.03,222.97,32.0]
[1759860336284,8.33562204,223.03,222.97,39.76562204]
[1759860336886,8.33562204,223.03,222.98,10.87647521]
[1759860337485,8.33562204,223.03,223.0,10.87647521]
[1759860339475,7.76562204,223.03,223.0,10.87647521]
[1759860339783,0.57,223.02,223.0,10.87647521]
[1759860339985,7.76562204,223.01,222.94,10.87647521]
[1759860340297,1e-08,223.08,222.94,10.87647521]
[1759860340298,7.76562204,222.99,222.94,10.87647521]
[1759860340472,0.57,222.98,222.94,10.87647521]
[1759860340670,8.33562204,222.98,222.94,10.87647521]
[1759860340861,8.33562204,222.97,222.94,10.87647521]
[1759860341058,8.33562204,222.97,222.93,10.87647521]
[1759860341679,15.6922525,223.04,222.94,4.48551179]
[1759860341680,4.48382224,223.03,222.94,4.48551179]
[1759860341873,7.76562204,222.96,222.93,10.87647521]
[1759860342068,7.76562204,222.94,222.9,15.36261879]
[1759860342267,0.57,222.95,222.9,15.36261879]
[1759860342475,7.76562204,222.94,222.9,15.36261879]
[1759860342994,7.76562204,222.95,222.9,16.06261879]
[1759860343178,4.88356387,222.95,222.9,16.06261879]
[1759860343498,4.88356387,222.94,222.9,15.36261879]
[1759860343671,0.57,222.97,222.93,10.87647521]
[1759860344183,5.45356387,223.0,222.93,16.46003908]
[1759860344386,3.31641879,222.99,222.93,11.57647521]
[1759860344587,3.31641879,222.99,222.93,16.46003908]
[1759860345096,5.45356387,223.0,222.93,16.46003908]
[1759860345097,20.8,223.0,222.96,10.87647521]
[1759860345273,4.88356387,223.01,222.96,10.87647521]
[1759860345473,3.31561576,223.0,222.96,10.87647521]
[1759860346086,3.31561576,223.0,222.99,10.87647521]
[1759860346290,9.93686721,223.05,222.99,10.87647521]
[1759860346474,9.93686721,223.05,222.97,0.7]
[1759860346475,8.1989468,223.04,222.98,10.87647521]
[1759860346676,3.31538293,223.03,222.98,10.87647521]
[1759860347187,4.88356387,223.01,222.96,11.57647521]
[1759860347494,4.88356387,223.02,222.96,11.57647521]
[1759860347872,2.98291775,223.04,222.98,10.87647521]
[1759860348074,3.31498353,223.03,222.98,16.46003908]
[1759860348292,3.31498353,223.03,222.99,0.7]
[1759860348509,7.86699941,223.05,222.99,0.7]
[1759860348677,3.31537348,223.04,222.99,0.7]
[1759860348879,3.31537348,223.04,223.01,10.87647521]
[1759860349078,5.45356387,223.03,223.01,10.87647521]
[1759860349288,8.76934211,223.02,222.93,10.87647521]
[1759860349483,4.88356387,222.99,222.93,10.87647521]
[1759860349785,4.88356387,222.99,222.93,11.57647521]
[1759860350099,4.88356387,222.99,222.94,4.48551179]
[1759860350306,4.88356387,222.99,222.94,5.18551179]
[1759860350993,4.88356387,223.0,222.96,10.87647521]
[1759860351192,3.31560566,222.99,222.96,10.87647521]
[1759860351394,21.37,223.05,222.98,10.87647521]
[1759860351578,4.88356387,223.02,222.98,10.87647521]
[1759860351907,4.88356387,222.99,222.96,10.87647521]
[1759860352081,4.88356387,222.99,222.95,4.48519776]
[1759860352284,5.0541136,223.01,222.96,10.87647521]
[1759860352483,4.88356387,222.99,222.96,10.87647521]
[1759860352700,0.57,223.01,222.96,10.87647521]
[1759860352890,4.88356387,222.99,222.96,10.87647521]
[1759860353098,4.88356387,222.99,222.94,0.7]
[1759860353600,4.88356387,222.99,222.96,10.87647521]
[1759860353802,0.57,223.03,222.96,10.87647521]
[1759860353990,8.19932942,223.02,222.98,15.36100869]
[1759860354297,3.31580846,223.01,222.98,16.06100869]
[1759860354507,3.31580846,223.01,222.99,0.7]
[1759860354680,3.31580846,223.01,223.0,0.7]
[1759860355000,3.31580846,223.02,223.0,0.7]
[1759860355208,3.31580846,223.01,223.0,0.7]
[1759860355508,4.88356387,223.01,222.98,10.87647521]
[1759860355699,4.88356387,223.03,223.0,10.87647521]
[1759860355899,3.31705258,223.02,223.0,11.57647521]
[1759860356099,3.31705258,223.02,223.0,16.06072641]
[1759860356395,4.88356387,223.04,223.0,16.06072641]
[1759860356587,3.31795519,223.03,223.0,16.06072641]
[1759860356994,3.31829249,223.02,223.0,16.06072641]
[1759860357191,4.88356387,223.04,223.0,16.06072641]
[1759860357506,4.88356387,223.02,222.98,10.87647521]
[1759860357699,3.31818001,223.01,222.99,0.71]
[1759860358007,2.98626039,223.05,222.99,5.19435425]
[1759860358310,4.88356387,223.02,222.99,5.19435425]
[1759860358495,3.31833036,223.01,222.99,5.19435425]
[1759860358690,5.05327065,223.06,223.0,0.71]
[1759860358910,4.88356387,223.03,223.0,0.71]
[1759860359111,3.31854197,223.02,222.99,4.48435425]
[1759860359309,3.31854197,223.02,222.99,5.19435425]
[1759860359613,3.31854197,223.02,223.0,0.71]
[1759860359911,3.31854197,223.02,222.99,4.48435425]
[1759860359912,8.20210584,223.02,222.99,4.48435425]
[1759860360112,4.88356387,223.0,222.92,4.88356387]
[1759860360332,4.88356387,222.93,222.84,0.71]
[1759860360614,4.88356387,222.87,222.85,10.87647521]
[1759860360910,4.88356387,222.87,222.85,0.71]
[1759860361414,4.88356387,222.88,222.85,5.19721499]
[1759860361716,4.88356387,222.88,222.81,0.71]
[1759860361717,4.88356387,222.86,222.81,0.71]
[1759860361898,4.88356387,222.84,222.82,10.87647521]
[1759860362098,4.88356387,222.83,222.81,4.48812889]
[1759860362298,4.88356387,222.83,222.82,10.87647521]
[1759860362515,4.88356387,222.84,222.82,0.71]
[1759860362716,4.88356387,222.85,222.84,10.87647521]
[1759860362904,4.88356387,222.86,222.84,10.87647521]
[1759860363099,4.88356387,222.86,222.81,4.48812889]
[1759860363100,4.88356387,222.86,222.82,10.87647521]
[1759860363300,4.88356387,222.86,222.83,4.48772606]
[1759860363611,25.28618135,222.91,222.83,4.48772606]
[1759860363612,20.8,222.92,222.84,0.71]
[1759860363915,4.88356387,222.87,222.84,0.71]
[1759860364090,4.88356387,222.87,222.83,4.48772606]
[1759860364293,4.88356387,222.87,222.83,5.19772606]
[1759860364494,21.37,222.91,222.84,0.71]
[1759860364715,3.30891077,222.9,222.84,11.58647521]
[1759860364916,4.88689537,222.88,222.84,11.58647521]
[1759860365216,132.9,222.94,222.85,11.58647521]
[1759860365400,4.88689537,222.86,222.85,10.87647521]
[1759860365608,4.88689537,222.86,222.82,15.36421292]
[1759860365794,4.88689537,222.85,222.82,15.36421292]
[1759860366193,0.57,222.88,222.74,0.71]
[1759860366194,4.88689537,222.83,222.74,0.71]
[1759860366424,4.88689537,222.77,222.74,0.71]
[1759860366591,3.87468309,222.82,222.75,0.71]
[1759860366592,4.88689537,222.79,222.75,0.71]
[1759860366800,0.57,222.82,222.75,0.71]
[1759860366801,4.88689537,222.78,222.75,0.71]
[1759860367014,4.88689537,222.78,222.73,10.87647521]
[1759860367200,4.88689537,222.77,222.74,0.71]
[1759860367522,4.88689537,222.78,222.75,4.48933782]
[1759860368218,4.88689537,222.77,222.75,4.48933782]
[1759860369611,4.88689537,222.77,222.76,11.58647521]
[1759860369812,4.88689537,222.78,222.77,10.87647521]
[1759860370199,4.88689537,222.81,222.77,0.71]
[1759860370596,4.88689537,222.8,222.77,0.71]
[1759860370902,4.88689537,222.79,222.75,10.87647521]
[1759860371097,4.88689537,222.78,222.75,10.87647521]
[1759860371307,4.88689537,222.76,222.75,10.87647521]
[1759860372203,4.88689537,222.76,222.71,11.32505491]
[1759860372204,4.88689537,222.76,222.73,10.87647521]
[1759860372528,132.9,222.8,222.75,10.87647521]
[1759860372835,132.9,222.8,222.73,10.87647521]
[1759860372836,4.88689537,222.79,222.77,10.87647521]
[1759860372995,0.57,222.84,222.73,10.87647521]
[1759860373204,3.29326748,222.83,222.79,10.87647521]
[1759860373415,8.18016285,222.82,222.79,0.71]
[1759860373612,4.88689537,222.82,222.77,15.36540998]
[1759860373797,4.88689537,222.83,222.79,10.87647521]
[1759860373999,4.88689537,222.83,222.79,11.58647521]
[1759860374204,0.57,222.87,222.81,10.87647521]
[1759860374522,4.88689537,222.85,222.81,10.87647521]
[1759860374706,3.29374897,222.84,222.81,10.87647521]
[1759860374907,4.88689537,222.86,222.81,10.87647521]
[1759860375219,3.29382139,222.85,222.82,0.71]
[1759860375518,4.88689537,222.87,222.83,0.71]
[1759860375816,3.29449853,222.86,222.84,4.48752468]
[1759860376022,3.29449853,222.86,222.84,5.19752468]
[1759860376425,3.29449853,222.86,222.83,4.48771934]
[1759860376608,3.29449853,222.86,222.82,0.71]
[1759860376809,3.29449853,222.86,222.81,4.48794448]
[1759860377005,3.29449853,222.86,222.82,0.71]
[1759860377213,3.29449853,222.86,222.83,0.71]
[1759860377414,3.29449853,222.86,222.84,0.71]
[1759860377726,3.29449853,222.86,222.81,5.19794448]
[1759860377913,3.29449853,222.86,222.82,0.71]
[1759860378110,3.29449853,222.86,222.81,4.48794448]
[1759860378308,4.88689537,222.88,222.83,0.71]
[1759860378309,3.29449853,222.85,222.83,0.71]
[1759860378622,4.88689537,222.87,222.83,0.71]
[1759860378930,3.29819141,222.86,222.83,0.71]
[1759860379222,3.29819141,222.86,222.83,5.19769478]
[1759860379929,4.88689537,222.87,222.83,5.19769478]
[1759860380309,4.88689537,222.89,222.83,5.19769478]
[1759860380509,3.30058195,222.88,222.83,5.19769478]
[1759860380921,8.18747732,222.88,222.83,4.48769478]
[1759860381122,4.88689537,222.93,222.84,11.58647521]
[1759860381311,8.18714382,222.92,222.85,0.71]
[1759860381507,8.18714382,222.92,222.83,15.70700995]
[1759860381508,4.88689537,222.9,222.83,15.70700995]
[1759860381715,4.88689537,222.85,222.79,0.71]
[1759860381924,4.88689537,222.82,222.77,10.87647521]
[1759860382225,4.88689537,222.82,222.78,15.27]
[1759860382410,4.88689537,222.82,222.78,19.0485931]
[1759860382614,4.88689537,222.81,222.78,14.56]
[1759860382813,4.88689537,222.8,222.76,5.1991292]
[1759860383013,4.88689537,222.8,222.79,32.16]
[1759860383419,0.57,222.83,222.79,32.16]
[1759860383637,4.88689537,222.8,222.79,32.16]
[1759860383932,0.57,222.87,222.79,32.87]
[1759860384133,4.88689537,222.84,222.79,32.87]
[1759860384309,8.1843174,222.83,222.79,32.87]
[1759860384505,4.88689537,222.83,222.79,37.35847597]
[1759860384746,4.88689537,222.83,222.8,0.71]
[1759860385613,21.37,222.87,222.81,0.71]
[1759860385819,3.29905458,222.86,222.82,10.87647521]
[1759860386012,4.88689537,222.87,222.82,11.58647521]
[1759860386318,3.29935898,222.86,222.82,11.58647521]
[1759860386526,4.88689537,222.86,222.82,15.3642247]
[1759860386744,4.88689537,222.87,222.83,0.7]
[1759860386915,3.29965998,222.86,222.84,32.14]
[1759860387238,4.88689537,222.86,222.84,32.14]
[1759860389519,4.88689537,222.85,222.84,32.14]
[1759860389914,4.88689537,222.86,222.84,32.14]
[1759860391342,8.75694365,222.85,222.77,0.7]
[1759860391523,4.88689537,222.79,222.76,10.87647521]
[1759860391852,4.88689537,222.79,222.77,32.12]
[1759860392637,4.88689537,222.79,222.78,0.7]
[1759860392838,4.88689537,222.8,222.78,0.7]
[1759860393212,0.57,222.84,222.78,0.7]
[1759860393445,4.88689537,222.8,222.78,0.7]
[1759860394242,4.88689537,222.84,222.8,15.36480555]
[1759860394449,4.88689537,222.85,222.81,32.82]
[1759860394734,3.30240598,222.84,222.81,32.82]
[1759860394944,4.88689537,222.84,222.81,32.82]
[1759860395317,2.3421272,222.9,222.82,0.7]
[1759860395522,4.88689537,222.88,222.82,0.7]
[1759860395821,3.3021064,222.87,222.82,0.7]
[1759860396236,23.1421272,222.9,222.83,5.18763883]
[1759860396423,4.88689537,222.87,222.83,5.18763883]
[1759860396738,4.88689537,222.87,222.84,0.7]
[1759860396925,4.88689537,222.87,222.83,4.48763883]
[1759860396926,4.88689537,222.89,222.85,32.8]
[1759860397113,4.88689537,222.89,222.85,32.1]
[1759860397313,4.88689537,222.89,222.85,32.8]
[1759860398221,23.14192517,222.92,222.85,37.28719941]
[1759860398415,3.30559974,222.91,222.85,37.28719941]
[1759860398618,0.57,222.9,222.81,0.72]
[1759860398814,4.88689537,222.82,222.77,4.48874118]
[1759860399140,4.88689537,222.81,222.78,32.8]
[1759860399320,0.57,222.86,222.78,32.8]
[1759860399521,4.88689537,222.81,222.78,32.8]
[1759860399924,8.42453177,223.01,222.78,36.56854813]
[1759860400140,4.88689537,222.86,222.79,11.59647521]
[1759860400444,4.88689537,222.86,222.81,10.87647521]
[1759860400617,4.88689537,222.86,222.82,32.8]
[1759860400820,4.88689537,222.86,222.83,0.72]
[1759860401333,2.34192517,222.92,222.85,10.87647521]
[1759860401541,3.31181634,222.91,222.86,32.8]
[1759860401725,0.57,222.94,222.87,0.72]
[1759860401726,8.19871171,222.9,222.87,0.72]
[1759860401921,3.31181634,222.89,222.87,0.72]
[1759860402135,3.3143452,222.88,222.87,0.72]
[1759860402335,3.3143452,222.89,222.87,0.72]
[1759860402536,3.3143452,222.88,222.87,0.72]
[1759860402749,8.20124057,222.89,222.86,32.08]
[1759860402934,8.20124057,222.88,222.86,32.08]
[1759860403130,3.3143452,222.87,222.86,32.08]
[1759860403537,8.20124057,222.87,222.86,32.06]
[1759860403739,8.77124057,222.87,222.79,4.4885318]
[1759860404047,4.88689537,222.82,222.8,42.93647521]
[1759860404227,4.88689537,222.82,222.8,32.06]
[1759860404419,4.88689537,222.81,222.8,32.06]
[1759860404925,4.88689537,222.81,222.79,10.87647521]
[1759860405125,4.48761318,222.84,222.8,32.06]
[1759860405326,7.78315936,222.81,222.8,32.06]
[1759860405520,11.10405867,222.81,222.8,32.06]
[1759860406230,15.59218756,222.81,222.8,32.06]
[1759860408954,3.32089931,222.81,222.8,32.78]
[1759860409250,11.10405867,222.81,222.8,32.06]
[1759860409439,11.10525148,222.81,222.75,10.87647521]
[1759860409759,7.78315936,222.76,222.74,35.0]
[1759860409935,3.32209212,222.8,222.74,35.0]
[1759860409936,11.10525148,222.75,222.74,35.0]
[1759860410129,11.10525148,222.75,222.74,67.1]
[1759860410831,3.32209212,222.75,222.74,67.1]
[1759860411231,3.32209212,222.75,222.74,67.82]
[1759860411437,7.78744916,222.78,222.74,67.82]
[1759860411743,3.32161829,222.77,222.75,0.72]
[1759860411944,3.32161829,222.77,222.76,0.72]
[1759860412143,7.78744916,222.8,222.76,0.72]
[1759860412451,11.10934092,222.79,222.77,32.08]
[1759860412761,3.32189176,222.78,222.77,32.08]
[1759860412931,7.78744916,222.81,222.77,32.08]
[1759860413131,3.32213226,222.8,222.78,0.72]
[1759860413643,3.32213226,222.8,222.77,32.08]
[1759860413953,3.32213226,222.8,222.78,0.72]
[1759860414260,15.59817138,222.79,222.75,0.72]
[1759860414558,15.59817138,222.79,222.76,32.08]
[1759860414559,3.32213226,222.78,222.76,32.08]
[1759860414740,4.48858996,222.79,222.76,32.08]
[1759860414741,11.10958142,222.77,222.76,32.08]
[1759860416162,3.32213226,222.77,222.76,32.8]
[1759860416535,3.32213226,222.78,222.76,32.8]
[1759860416736,4.4883769,222.8,222.76,32.08]
[1759860416737,3.32213226,222.77,222.76,32.08]
[1759860416956,11.78895554,222.84,222.76,32.08]
[1759860416957,3.32213226,222.79,222.76,42.95647521]
[1759860417259,4.48689561,222.88,222.79,10.87647521]
[1759860417440,7.78744916,222.86,222.8,32.08]
[1759860417768,7.78744916,222.81,222.75,11.53647521]
[1759860417968,11.11047768,222.8,222.76,32.08]
[1759860418131,7.78744916,222.8,222.76,32.74]
[1759860418337,7.78744916,222.8,222.77,0.66]
[1759860418631,7.78744916,222.8,222.75,4.48932477]
[1759860418837,7.78744916,222.77,222.76,32.74]
[1759860419143,3.3225423,222.77,222.76,32.74]
[1759860419355,3.3225423,222.78,222.76,32.74]
[1759860419651,3.32144719,222.77,222.76,32.08]
[1759860419962,11.10889635,222.78,222.76,32.08]
[1759860420165,3.32144719,222.77,222.76,32.08]
[1759860420546,11.10889635,222.77,222.76,32.08]
[1759860420934,7.78744916,222.8,222.76,37.22913629]
[1759860421135,11.10907501,222.79,222.76,32.08]
[1759860421372,7.78744916,222.79,222.76,32.74]
[1759860421664,3.32156222,222.78,222.76,32.74]
[1759860422232,7.78744916,222.79,222.76,32.74]
[1759860422544,12.2760583,222.79,222.76,32.74]
[1759860422748,3.3213648,222.78,222.76,32.74]
[1759860423054,7.78744916,222.81,222.77,0.66]
[1759860423248,3.32181229,222.8,222.77,0.66]
[1759860423936,3.32181229,222.8,222.78,0.66]
[1759860424138,3.32181229,222.8,222.79,32.74]
[1759860424667,7.78744916,222.83,222.79,32.74]
[1759860424852,11.10901646,222.82,222.79,32.74]
[1759860425052,3.3215673,222.81,222.79,32.74]
[1759860425376,11.10901646,222.81,222.8,32.08]
[1759860427040,6.42462242,222.81,222.8,32.08]
[1759860427242,3.3215673,222.81,222.8,32.08]
[1759860427436,3.3215673,222.81,222.8,32.74]
[1759860427657,3.3215673,222.82,222.8,32.74]
[1759860427838,3.3215673,222.82,222.81,0.66]
[1759860428172,3.3215673,222.82,222.81,5.14812889]
[1759860428458,3.10305512,222.89,222.82,10.87647521]
[1759860428663,3.32265827,222.88,222.83,35.80305512]
[1759860428850,3.32265827,222.88,222.84,0.66]
[1759860429051,3.32265827,222.88,222.85,0.66]
[1759860429250,3.32265827,222.88,222.86,32.06]
[1759860429451,11.10019691,222.88,222.86,32.06]
[1759860429648,11.10019691,222.87,222.86,32.06]
[1759860429844,3.32265827,222.87,222.86,32.06]
[1759860430670,3.32265827,222.87,222.86,32.72]
[1759860430867,7.77753864,222.9,222.86,32.72]
[1759860431174,3.32265827,222.89,222.87,0.66]
[1759860431361,3.32265827,222.88,222.87,0.66]
[1759860431753,7.77753864,222.92,222.88,0.66]
[1759860431953,11.09996093,222.91,222.89,32.06]
[1759860432160,3.32242229,222.9,222.89,32.06]
[1759860432561,3.32242229,222.9,222.89,32.72]
[1759860432767,7.77753864,222.93,222.89,48.08286386]
[1759860432970,3.32260122,222.92,222.9,19.31401385]
[1759860433174,132.9,223.01,222.91,8.43753864]
[1759860433486,7.77753864,222.96,222.92,32.04]
[1759860433774,3.32293448,222.95,222.93,0.66]
[1759860433970,3.32293448,222.94,222.93,0.66]
[1759860434175,3.32293448,222.95,222.93,0.66]
[1759860434581,3.32293448,222.95,222.94,0.66]
[1759860434984,7.77753864,222.98,222.94,0.66]
[1759860435156,3.32004627,222.97,222.95,32.04]
[1759860435355,3.32004627,222.97,222.95,32.7]
[1759860435577,7.77753864,222.98,222.95,32.7]
[1759860435887,135.24117697,223.0,222.95,32.7]
[1759860435888,140.67753864,223.0,222.96,0.66]
[1759860436082,3.31840241,222.99,222.96,0.66]
[1759860436289,11.09594105,222.99,222.96,0.66]
[1759860436584,7.77753864,222.99,222.97,0.66]
[1759860436791,132.9,223.0,222.98,32.04]
[1759860436962,140.67753864,223.0,222.98,32.7]
[1759860437359,7.77753864,223.02,222.98,32.7]
[1759860437579,21.37,223.05,222.98,32.7]
[1759860437580,7.77753864,223.03,222.99,0.66]
[1759860437900,3.31450587,223.02,222.99,0.66]
[1759860438186,3.31450587,223.02,223.0,0.66]
[1759860438363,7.77753864,223.04,223.01,32.04]
[1759860438693,132.9,223.07,223.02,0.66]
[1759860438898,7.77753864,223.05,223.02,0.66]
[1759860439680,7.77753864,223.05,223.01,32.04]
[1759860439870,137.95292011,223.07,223.01,32.04]
[1759860440272,7.77753864,223.03,223.01,32.04]
[1759860440593,7.77753864,223.03,223.01,32.7]
[1759860441004,7.77753864,223.04,223.01,32.7]
[1759860442190,4.48319962,223.06,223.01,32.7]
[1759860442387,7.77753864,223.04,223.01,32.7]
[1759860445779,7.77753864,223.03,223.01,32.7]
[1759860445975,4.4830818,223.07,223.01,32.7]
[1759860446188,20.8,223.06,223.01,32.7]
[1759860446778,7.77753864,223.04,223.01,32.7]
[1759860446976,20.8,223.06,223.02,0.68]
[1759860447278,7.77753864,223.04,223.02,0.68]
[1759860447480,20.8,223.06,223.02,0.68]
[1759860447915,132.9,223.07,223.03,0.68]
[1759860448202,1e-08,223.08,223.04,32.0]
[1759860448502,1e-08,223.08,223.05,11.55647521]
[1759860448873,1e-08,223.08,223.06,0.68]
[1759860449074,1e-08,223.08,223.07,32.0]
[1759860449300,1e-08,223.08,223.07,32.68]
[1759860450013,1e-08,223.08,223.07,51.13399575]
[1759860451400,1e-08,223.08,223.07,71.93399575]
[1759860452276,0.2,223.1,223.09,20.8]
[1759860452480,0.2,223.1,223.09,66.77109801]
[1759860452694,0.2,223.1,223.09,67.45109801]